bitfinex/quotes_SOLUSD_20250422
["timestamp","ask_amount","ask_price","bid_price","bid_amount"]
[1745334366196,0.03,144.99,144.93,26.0]
[1745334366197,76.89974713,144.98,144.91,0.063]
[1745334366406,64.86349827,144.96,144.91,0.063]
[1745334366717,58.25009827,144.92,144.82,93.02848503]
[1745334366921,18.64964886,144.91,144.82,10.45848503]
[1745334367091,18.64964886,144.91,144.86,58.25009827]
[1745334367420,59.90179827,144.87,144.82,10.45848503]
[1745334367612,1.6517,144.87,144.82,10.45848503]
[1745334367793,59.90179827,144.87,144.82,68.7085833]
[1745334367989,1.6517,144.87,144.82,10.45848503]
[1745334368225,1.6517,144.87,144.83,58.25009827]
[1745334368625,1.6517,144.87,144.82,10.45848503]
[1745334368833,6.6134,144.83,144.82,10.45848503]
[1745334369313,6.6134,144.83,144.8,58.25009827]
[1745334369637,6.6134,144.83,144.79,58.25009827]
[1745334369800,6.6134,144.83,144.78,0.063]
[1745334370004,6.6134,144.83,144.79,26.0]
[1745334370208,6.6134,144.83,144.8,58.25009827]
[1745334370405,6.6134,144.83,144.79,26.0]
[1745334370731,6.6134,144.83,144.8,58.25009827]
[1745334370936,13.518174,144.83,144.8,58.25009827]
[1745334371301,13.518174,144.83,144.78,26.063]
[1745334371521,13.518174,144.83,144.81,58.25009827]
[1745334371829,6.90321689,144.86,144.82,58.25009827]
[1745334372008,6.90321689,144.86,144.83,58.25009827]
[1745334372200,6.90321689,144.86,144.78,108.633]
[1745334372403,7.8654,144.87,144.81,26.0]
[1745334372931,14.7683176,144.87,144.81,26.0]
[1745334373129,7.8654,144.87,144.85,58.22651998]
[1745334373307,14.76815318,144.87,144.84,58.22651998]
[1745334373924,14.7682412,144.87,144.81,26.0]
[1745334374231,72.99476118,144.87,144.82,58.22651998]
[1745334374534,58.22651998,144.86,144.81,58.22651998]
[1745334374840,24.16292716,144.85,144.78,0.063]
[1745334375010,58.22651998,144.84,144.79,58.22651998]
[1745334375335,82.38944714,144.85,144.78,0.063]
[1745334375548,58.22651998,144.83,144.78,0.063]
[1745334375905,58.22651998,144.82,144.78,0.063]
[1745334376110,58.22651998,144.83,144.78,58.28951998]
[1745334376326,24.16292716,144.85,144.78,0.063]
[1745334376831,6.9051236,144.82,144.78,0.063]
[1745334377213,6.9051236,144.82,144.79,58.22651998]
[1745334377416,6.90469819,144.83,144.79,58.22651998]
[1745334377615,65.12973687,144.86,144.78,0.063]
[1745334377820,65.15190732,144.86,144.81,58.24869043]
[1745334378012,7.8654,144.87,144.81,26.0]
[1745334378328,7.8654,144.87,144.84,58.24869043]
[1745334378645,1.6517,144.87,144.81,108.57]
[1745334378808,1.6517,144.87,144.85,58.24869043]
[1745334379013,1.6517,144.87,144.81,115.47528716]
[1745334379316,8.55455571,144.87,144.84,58.24869043]
[1745334379519,8.55455571,144.87,144.81,108.57]
[1745334379727,1.6517,144.87,144.86,58.24869043]
[1745334379930,6.1266,144.9,144.81,115.47558765]
[1745334380114,6.1266,144.9,144.86,58.24869043]
[1745334380317,6.1266,144.9,144.88,58.24869043]
[1745334380514,1.6366,144.91,144.84,108.57]
[1745334380713,1.6366,144.95,144.9,142.49738086]
[1745334380919,1.6366,144.95,144.9,26.0]
[1745334381219,1.6366,144.95,144.9,115.47112851]
[1745334381429,1.6366,144.95,144.9,108.57]
[1745334381629,8.53556241,144.95,144.9,108.57]
[1745334381939,66.78425284,144.95,144.9,108.57]
[1745334382237,8.53556241,144.95,144.91,58.24869043]
[1745334382733,66.78425284,144.95,144.9,82.57]
[1745334383230,66.78425284,144.95,144.89,58.24869043]
[1745334383438,8.53556241,144.95,144.87,26.0]
[1745334383818,8.53556241,144.95,144.9,58.24869043]
[1745334384218,8.53556241,144.95,144.89,26.0]
[1745334384638,66.78425284,144.95,144.9,58.24869043]
[1745334385133,58.24869043,144.94,144.89,84.24869043]
[1745334385328,8.53556241,144.95,144.86,89.47316846]
[1745334385637,58.24869043,144.94,144.89,58.24869043]
[1745334385933,58.24869043,144.93,144.87,26.0]
[1745334386129,58.24869043,144.9,144.83,82.57]
[1745334386336,58.24869043,144.89,144.84,58.24869043]
[1745334386538,58.24869043,144.88,144.79,82.57]
[1745334386713,6.2947,144.89,144.82,26.0]
[1745334386913,6.90274038,144.87,144.82,26.0]
[1745334387108,65.15143081,144.87,144.79,82.57]
[1745334387315,58.24869043,144.86,144.81,58.24869043]
[1745334387920,8.52084038,144.87,144.82,58.24869043]
[1745334388114,66.76953081,144.87,144.82,58.24869043]
[1745334388316,8.52084038,144.87,144.82,58.24869043]
[1745334388514,66.76953081,144.87,144.82,58.24869043]
[1745334389124,66.76953081,144.87,144.8,26.0]
[1745334389323,8.52084038,144.87,144.8,26.0]
[1745334389525,66.76953081,144.87,144.8,26.0]
[1745334389734,6.2947,144.89,144.82,58.24869043]
[1745334390038,58.24869043,144.86,144.81,58.24869043]
[1745334390551,6.2947,144.89,144.81,58.24869043]
[1745334390838,58.24869043,144.82,144.78,0.063]
[1745334391143,65.15524475,144.79,144.78,0.063]
[1745334391944,83.80489361,144.79,144.78,0.063]
[1745334392141,82.42163055,144.79,144.73,0.063]
[1745334392343,58.24869043,144.74,144.73,0.063]
[1745334392845,18.64964886,144.72,144.69,0.063]
[1745334393144,116.49738086,144.7,144.69,0.063]
[1745334393330,6.91037246,144.71,144.69,0.063]
[1745334394048,58.24869043,144.7,144.69,0.063]
[1745334395246,65.15954046,144.7,144.69,0.063]
[1745334395449,58.24869043,144.7,144.69,0.063]
[1745334395641,20.26774886,144.73,144.69,0.063]
[1745334395642,1.6181,144.73,144.69,0.063]
[1745334396520,59.86679043,144.73,144.69,0.063]
[1745334396720,58.24869043,144.72,144.69,0.063]
[1745334396950,1.6181,144.73,144.69,0.063]
[1745334397118,58.24869043,144.71,144.69,0.063]
[1745334397620,1.6181,144.73,144.69,0.063]
[1745334397821,1.5451,144.78,144.69,166.88169043]
[1745334398078,58.24869043,144.77,144.69,108.633]
[1745334398251,58.24869043,144.75,144.7,58.24869043]
[1745334398443,8.45243714,144.78,144.7,58.24869043]
[1745334398649,8.45243714,144.78,144.69,108.633]
[1745334398840,58.24869043,144.75,144.7,58.24869043]
[1745334399029,58.24869043,144.72,144.69,0.063]
[1745334399325,58.24869043,144.7,144.69,0.063]
[1745334399733,6.91001022,144.72,144.69,0.063]
[1745334400151,58.24869043,144.7,144.69,0.063]
[1745334400347,17.27190589,144.75,144.69,0.063]
[1745334400528,6.90750846,144.77,144.7,58.24869043]
[1745334400721,6.90750846,144.77,144.69,0.063]
[1745334400921,58.24869043,144.72,144.69,0.063]
[1745334401322,58.24869043,144.76,144.69,0.063]
[1745334401523,65.15860037,144.72,144.69,0.063]
[1745334401816,58.24869043,144.72,144.69,0.063]
[1745334402038,65.15863868,144.72,144.69,0.063]
[1745334402246,6.90846286,144.75,144.69,0.063]
[1745334402553,58.24869043,144.74,144.69,0.063]
[1745334402723,58.24869043,144.73,144.69,0.063]
[1745334403650,6.90833694,144.76,144.71,58.24869043]
[1745334403864,65.15702737,144.76,144.71,58.24869043]
[1745334404061,58.24869043,144.75,144.7,58.24869043]
[1745334404651,6.90833694,144.76,144.69,0.063]
[1745334404823,6.90833694,144.76,144.7,58.24869043]
[1745334405029,6.90750846,144.77,144.7,58.24869043]
[1745334405236,65.15619889,144.77,144.69,6.97423725]
[1745334405433,65.15619889,144.77,144.72,58.24869043]
[1745334405729,65.15619889,144.77,144.69,6.97423725]
[1745334405730,58.24869043,144.76,144.71,58.24869043]
[1745334406458,65.15619889,144.77,144.72,58.24869043]
[1745334406637,65.15619889,144.77,144.69,6.97428283]
[1745334406638,58.24869043,144.76,144.71,58.24869043]
[1745334406833,58.24869043,144.75,144.69,0.063]
[1745334407144,58.24869043,144.7,144.69,0.063]
[1745334407442,62.82930741,144.75,144.69,0.063]
[1745334407644,58.24869043,144.7,144.69,0.063]
[1745334408225,64.60589043,144.7,144.69,0.063]
[1745334408748,6.3572,144.7,144.69,0.063]
[1745334409047,71.51674046,144.7,144.69,0.063]
[1745334409842,6.91042608,144.71,144.69,0.063]
[1745334410344,65.15911651,144.71,144.69,0.063]
[1745334410552,58.24869043,144.7,144.69,0.063]
[1745334411046,65.15954046,144.7,144.69,0.063]
[1745334411954,6.91085003,144.7,144.69,0.063]
[1745334412823,65.15954046,144.7,144.69,0.063]
[1745334413933,6.3572,144.69,144.66,0.063]
[1745334414246,76.89833929,144.67,144.66,0.063]
[1745334414550,58.24869043,144.67,144.66,0.063]
[1745334415047,58.24869043,144.67,144.63,0.063]
[1745334415048,51.56336567,144.64,144.63,0.063]
[1745334415248,109.8120561,144.64,144.63,1e-08]
[1745334415638,65.16240724,144.64,144.63,1e-08]
[1745334416730,83.8120561,144.64,144.63,1e-08]
[1745334416936,18.64964886,144.63,144.62,1e-08]
[1745334417137,7.6773,144.62,144.57,0.063]
[1745334417352,18.64964886,144.61,144.57,0.063]
[1745334417729,58.24869043,144.58,144.57,0.063]
[1745334418347,58.24869043,144.58,144.57,1e-08]
[1745334419223,38.64964886,144.57,144.54,1e-08]
[1745334419461,116.49738086,144.55,144.54,1e-08]
[1745334419670,18.64964886,144.54,144.5,0.063]
[1745334419832,58.24869043,144.51,144.5,0.063]
[1745334420162,58.24869043,144.52,144.5,0.063]
[1745334420353,18.64964886,144.57,144.5,0.063]
[1745334420565,24.2080509,144.58,144.51,58.24869043]
[1745334420747,24.2080509,144.58,144.52,58.24869043]
[1745334421051,58.24869043,144.57,144.51,26.0]
[1745334421241,65.16623331,144.56,144.51,84.24869043]
[1745334421442,58.24869043,144.54,144.5,26.063]
[1745334421751,58.24869043,144.52,144.5,0.063]
[1745334422246,42.86104896,144.56,144.5,0.063]
[1745334422453,58.24869043,144.53,144.5,0.063]
[1745334422641,6.91754288,144.56,144.5,58.31169043]
[1745334422833,6.91754288,144.56,144.5,0.063]
[1745334423034,65.16623331,144.56,144.5,0.063]
[1745334423236,6.91850006,144.54,144.5,0.063]
[1745334423430,6.91658597,144.58,144.52,58.24869043]
[1745334423636,6.91658597,144.58,144.56,58.24869043]
[1745334423842,6.91658597,144.58,144.53,26.0]
[1745334424056,65.1652764,144.58,144.53,26.0]
[1745334424260,65.1652764,144.58,144.53,84.24869043]
[1745334424438,6.91658597,144.58,144.54,58.24869043]
[1745334424841,6.91658597,144.58,144.56,58.24869043]
[1745334425055,6.91658597,144.58,144.53,26.0]
[1745334425352,65.16479804,144.59,144.53,26.0]
[1745334425556,58.24869043,144.58,144.53,26.0]
[1745334425764,58.24869043,144.57,144.51,26.0]
[1745334426056,58.24869043,144.59,144.54,58.24869043]
[1745334426560,18.64964886,144.61,144.55,58.24869043]
[1745334426736,33.6773,144.62,144.51,44.64964886]
[1745334426935,58.24869043,144.59,144.54,58.24869043]
[1745334427338,6.91515109,144.61,144.58,58.24869043]
[1745334427740,6.91515109,144.61,144.54,26.0]
[1745334427941,65.16384152,144.61,144.56,58.24869043]
[1745334428141,6.91515109,144.61,144.56,58.24869043]
[1745334428357,65.16384152,144.61,144.54,26.0]
[1745334428557,65.16384152,144.61,144.56,58.24869043]
[1745334428765,6.91515109,144.61,144.54,26.0]
[1745334428968,58.24869043,144.59,144.54,26.0]
[1745334429141,6.91515109,144.61,144.56,58.24869043]
[1745334429471,65.16384152,144.61,144.56,58.24869043]
[1745334429643,6.91515109,144.61,144.56,58.24869043]
[1745334429839,58.24869043,144.6,144.54,26.0]
[1745334430063,58.24869043,144.6,144.55,58.24869043]
[1745334430262,65.16384152,144.61,144.56,58.24869043]
[1745334430460,6.91515109,144.61,144.54,26.0]
[1745334430763,6.94380278,144.64,144.58,26.0]
[1745334431063,6.94380278,144.64,144.6,58.24869043]
[1745334431257,65.19249321,144.64,144.58,26.0]
[1745334431473,6.94380278,144.64,144.6,58.24869043]
[1745334431644,0.03,144.64,144.61,58.24869043]
[1745334432136,6.94372873,144.64,144.61,58.24869043]
[1745334432340,6.94372873,144.64,144.6,58.24869043]
[1745334432571,65.19241916,144.64,144.59,58.24869043]
[1745334432752,58.24869043,144.63,144.58,166.81869043]
[1745334433145,58.24869043,144.63,144.58,108.57]
[1745334433346,6.91467293,144.62,144.58,166.81869043]
[1745334433766,6.91467293,144.62,144.58,108.57]
[1745334433969,6.91467293,144.62,144.58,166.81869043]
[1745334434169,6.91467293,144.62,144.59,58.24869043]
[1745334434683,58.24869043,144.62,144.58,108.57]
[1745334434965,58.24869043,144.61,144.58,108.57]
[1745334435175,58.24869043,144.6,144.58,108.57]
[1745334435338,58.24869043,144.6,144.54,82.57]
[1745334435339,6.91658597,144.58,144.54,82.57]
[1745334435539,58.24869043,144.56,144.54,82.57]
[1745334435744,58.24869043,144.57,144.54,82.57]
[1745334435966,65.1652764,144.58,144.54,82.57]
[1745334436160,58.24869043,144.57,144.54,82.57]
[1745334436356,58.24869043,144.56,144.53,26.0]
[1745334436556,58.24869043,144.56,144.51,58.24869043]
[1745334436765,58.24869043,144.55,144.5,82.633]
[1745334436949,58.24869043,144.53,144.5,82.633]
[1745334437352,58.24869043,144.53,144.5,0.063]
[1745334437568,65.16814794,144.52,144.5,0.063]
[1745334437869,6.91945751,144.52,144.5,0.063]
[1745334438167,58.24869043,144.51,144.5,0.063]
[1745334439466,65.16862676,144.51,144.5,0.063]
[1745334439854,6.91993633,144.51,144.5,0.063]
[1745334440757,65.16862676,144.51,144.5,0.063]
[1745334440957,6.91993633,144.51,144.5,0.063]
[1745334441150,65.16862676,144.51,144.5,0.063]
[1745334441558,6.91993633,144.51,144.5,0.063]
[1745334441754,71.73402676,144.51,144.5,1e-08]
[1745334442353,32.13498519,144.51,144.5,1e-08]
[1745334442558,90.38367562,144.51,144.5,1e-08]
[1745334443561,90.38367562,144.51,144.48,1e-08]
[1745334443562,18.64964886,144.5,144.48,1e-08]
[1745334443758,58.24869043,144.49,144.48,1e-08]
[1745334444151,135.14702972,144.49,144.48,1e-08]
[1745334444375,44.64964886,144.46,144.45,1e-08]
[1745334444578,102.89833929,144.46,144.45,1e-08]
[1745334445076,26.80164886,144.45,144.42,1e-08]
[1745334445384,18.64964886,144.42,144.37,0.063]
[1745334445556,58.24869043,144.39,144.37,0.063]
[1745334446267,26.0,144.35,144.32,18.45099996]
[1745334446455,26.0,144.35,144.22,82.57]
[1745334446456,26.0,144.29,144.28,10.65236314]
[1745334447161,84.24869043,144.29,144.28,10.65236314]
[1745334447571,91.17917764,144.29,144.28,10.65236314]
[1745334448057,6.92904656,144.32,144.28,10.65236314]
[1745334448371,58.24869043,144.3,144.28,10.65236314]
[1745334448573,6.92904656,144.32,144.28,10.65236314]
[1745334449163,65.17773699,144.32,144.28,10.65236314]
[1745334449567,6.92959143,144.31,144.28,10.65236314]
[1745334449769,58.24869043,144.3,144.28,10.65236314]
[1745334450070,6.92959143,144.31,144.28,10.65236314]
[1745334450275,58.24869043,144.29,144.25,26.0]
[1745334450474,58.24869043,144.3,144.25,84.24869043]
[1745334450671,58.24869043,144.32,144.27,58.24869043]
[1745334450867,6.92705711,144.37,144.29,26.0]
[1745334451073,58.24869043,144.35,144.3,58.24869043]
[1745334451380,58.24869043,144.41,144.32,84.24869043]
[1745334451561,6.9237693,144.43,144.34,58.24869043]
[1745334451880,6.9237693,144.43,144.36,58.24869043]
[1745334452081,58.24869043,144.41,144.34,108.57]
[1745334452383,58.24869043,144.39,144.34,108.57]
[1745334452567,13.49142071,144.44,144.37,58.24869043]
[1745334452770,58.24869043,144.43,144.38,58.24869043]
[1745334453094,58.24869043,144.39,144.34,82.57]
[1745334453282,58.24869043,144.37,144.34,82.57]
[1745334453472,58.24869043,144.37,144.34,81.57]
[1745334453674,26.0,144.44,144.35,58.24869043]
[1745334453884,58.24869043,144.4,144.35,58.24869043]
[1745334454081,58.24869043,144.38,144.34,81.57]
[1745334454464,58.24869043,144.35,144.31,158.46833929]
[1745334454886,58.24869043,144.41,144.32,26.0]
[1745334455099,58.24869043,144.36,144.32,26.0]
[1745334455273,58.24869043,144.41,144.32,84.24869043]
[1745334455471,6.9237693,144.43,144.34,84.24869043]
[1745334455682,58.24869043,144.39,144.34,84.24869043]
[1745334456083,58.24869043,144.4,144.35,76.89833929]
[1745334456282,58.24869043,144.4,144.35,158.46833929]
[1745334456479,6.9237693,144.43,144.35,100.21964886]
[1745334456689,58.24869043,144.4,144.35,158.46833929]
[1745334456876,58.24869043,144.4,144.35,100.21964886]
[1745334457192,58.24869043,144.4,144.35,158.46833929]
[1745334457486,24.23023945,144.45,144.35,158.46833929]
[1745334457686,24.23023945,144.45,144.35,100.21964886]
[1745334457891,6.92281066,144.45,144.39,58.24869043]
[1745334458078,58.24869043,144.42,144.37,58.24869043]
[1745334458390,6.92281066,144.45,144.38,58.24869043]
[1745334458588,58.24869043,144.43,144.38,58.24869043]
[1745334458892,58.24869043,144.42,144.35,81.57]
[1745334459109,58.24869043,144.39,144.35,81.57]
[1745334459399,24.22983731,144.45,144.35,81.57]
[1745334459583,17.30627585,144.46,144.38,26.0]
[1745334459898,58.24869043,144.41,144.36,26.0]
[1745334460071,58.24869043,144.41,144.36,84.24869043]
[1745334460402,6.9213732,144.48,144.39,58.24869043]
[1745334460611,6.9213732,144.48,144.4,58.24869043]
[1745334460781,6.9213732,144.48,144.41,58.24869043]
[1745334461098,6.9213732,144.48,144.43,58.24869043]
[1745334461314,6.92092273,144.49,144.43,58.24869043]
[1745334461470,6.92062438,144.5,144.42,18.64964886]
[1745334461674,58.24869043,144.5,144.44,26.0]
[1745334461878,58.24869043,144.49,144.44,26.0]
[1745334462075,58.24869043,144.49,144.44,84.24869043]
[1745334462280,6.91945751,144.52,144.44,84.24869043]
[1745334462497,58.24869043,144.5,144.44,84.24869043]
[1745334462803,6.91945751,144.52,144.45,58.24869043]
[1745334463111,0.063,144.48,144.47,58.24869043]
[1745334463408,57.81169043,144.51,144.45,18.64964886]
[1745334463705,6.91857582,144.54,144.49,58.24869043]
[1745334463898,65.16726625,144.54,144.47,44.64964886]
[1745334464106,58.24869043,144.52,144.47,102.89833929]
[1745334464271,6.91857582,144.54,144.48,26.0]
[1745334464472,58.24869043,144.52,144.48,26.0]
[1745334464870,6.91857582,144.54,144.48,84.24869043]
[1745334465068,6.3782,144.55,144.49,58.24869043]
[1745334465274,13.29626298,144.55,144.5,58.24869043]
[1745334465575,65.16675341,144.55,144.5,58.24869043]
[1745334465888,65.16675341,144.55,144.48,26.0]
[1745334466103,65.16675341,144.55,144.5,58.24869043]
[1745334466396,65.16675341,144.55,144.48,26.0]
[1745334466599,65.16675341,144.55,144.5,58.24869043]
[1745334466974,6.91806298,144.55,144.5,58.24869043]
[1745334467300,6.98012812,144.57,144.53,58.24869043]
[1745334467702,0.063,144.57,144.53,58.24869043]
[1745334467871,6.98025758,144.57,144.53,58.24869043]
[1745334468072,0.063,144.57,144.53,58.24869043]
[1745334468307,58.31169043,144.57,144.52,44.64964886]
[1745334468479,0.063,144.57,144.53,58.24869043]
[1745334468801,0.063,144.57,144.54,58.24869043]
[1745334468990,0.063,144.57,144.53,58.24869043]
[1745334469186,0.063,144.57,144.52,44.64964886]
[1745334469378,0.063,144.57,144.56,58.24869043]
[1745334469578,0.063,144.57,144.53,81.57]
[1745334470276,0.063,144.57,144.56,76.89833929]
[1745334470476,0.063,144.57,144.56,158.46833929]
[1745334470881,0.03,144.64,144.6,44.64964886]
[1745334471077,0.03,144.64,144.63,58.24869043]
[1745334471278,0.03,144.64,144.6,44.64964886]
[1745334471480,0.03,144.64,144.6,107.57]
[1745334471680,0.03,144.64,144.62,58.24869043]
[1745334471916,0.03,144.64,144.63,84.24869043]
[1745334472210,0.03,144.64,144.6,81.57]
[1745334472411,58.24869043,144.61,144.55,81.57]
[1745334472708,58.24869043,144.56,144.51,58.24869043]
[1745334472901,58.24869043,144.56,144.52,26.0]
[1745334473205,58.24869043,144.55,144.52,26.0]
[1745334473508,58.24869043,144.55,144.51,81.57]
[1745334473674,6.3782,144.61,144.51,81.57]
[1745334474001,58.24869043,144.56,144.52,18.64964886]
[1745334474303,6.91562932,144.6,144.52,81.57]
[1745334474304,58.24869043,144.55,144.52,81.57]
[1745334474504,58.24869043,144.56,144.52,81.57]
[1745334474899,58.24869043,144.55,144.52,81.57]
[1745334475080,24.20470262,144.6,144.52,81.57]
[1745334475286,58.24869043,144.56,144.52,81.57]
[1745334475520,58.24869043,144.54,144.52,81.57]
[1745334476000,58.24869043,144.56,144.52,81.57]
[1745334476201,58.24869043,144.57,144.52,81.57]
[1745334476379,24.20470262,144.6,144.52,81.57]
[1745334476581,58.24869043,144.57,144.52,81.57]
[1745334476876,58.24869043,144.56,144.52,81.57]
[1745334477077,58.24869043,144.54,144.52,81.57]
[1745334477608,58.24869043,144.57,144.52,81.57]
[1745334477911,24.20470262,144.6,144.52,139.81869043]
[1745334478087,58.24869043,144.57,144.52,139.81869043]
[1745334478412,24.20470262,144.6,144.52,81.57]
[1745334478607,58.24869043,144.57,144.52,139.81869043]
[1745334478779,24.20470262,144.6,144.52,81.57]
[1745334478980,24.20470262,144.6,144.53,18.64964886]
[1745334479206,65.16431975,144.6,144.55,58.24869043]
[1745334479381,45.459971,144.6,144.55,38.54434168]
[1745334479585,38.54434168,144.59,144.54,64.54434168]
[1745334480107,6.91562932,144.6,144.54,64.54434168]
[1745334480287,6.91658597,144.58,144.54,64.54434168]
[1745334480690,38.54434168,144.57,144.54,26.0]
[1745334480998,38.54434168,144.56,144.52,107.57]
[1745334481207,38.54434168,144.54,144.52,81.57]
[1745334481416,38.54434168,144.54,144.5,26.0]
[1745334481578,38.54434168,144.54,144.49,138.76399054]
[1745334481780,38.54434168,144.56,144.51,38.54434168]
[1745334482201,6.91802144,144.55,144.51,38.54434168]
[1745334482386,45.46236312,144.55,144.5,26.0]
[1745334482582,6.91706439,144.57,144.51,38.54434168]
[1745334482787,38.54434168,144.56,144.51,38.54434168]
[1745334483405,6.91706439,144.57,144.51,44.64964886]
[1745334483718,6.91562932,144.6,144.54,64.54434168]
[1745334484077,6.97831549,144.61,144.56,57.19399054]
[1745334484294,0.063,144.61,144.59,38.54434168]
[1745334484494,0.063,144.61,144.6,83.19399054]
[1745334484693,0.063,144.61,144.6,126.21964886]
[1745334484917,38.60734168,144.61,144.6,81.57]
[1745334485099,0.063,144.61,144.6,81.57]
[1745334485301,38.60734168,144.61,144.58,26.0]
[1745334485712,0.063,144.61,144.58,26.0]
[1745334485899,38.54434168,144.6,144.56,26.0]
[1745334486226,6.91610761,144.59,144.55,81.57]
[1745334486399,38.54434168,144.58,144.55,81.57]
[1745334486604,6.91610761,144.59,144.55,81.57]
[1745334486802,6.3019,144.6,144.55,120.11434168]
[1745334486803,6.91579517,144.6,144.55,120.11434168]
[1745334487310,65.37400298,144.6,144.55,140.02820781]
[1745334487495,0.063,144.61,144.57,58.45820781]
[1745334488626,58.52120781,144.61,144.57,81.57]
[1745334488800,58.45820781,144.6,144.57,81.57]
[1745334489003,58.52120781,144.61,144.57,81.57]
[1745334489799,0.063,144.61,144.57,140.02820781]
[1745334490214,0.063,144.61,144.57,166.02820781]
[1745334490398,0.063,144.61,144.57,107.57]
[1745334490599,0.063,144.61,144.58,77.10785667]
[1745334490834,58.52120781,144.61,144.58,18.64964886]
[1745334491013,58.45820781,144.59,144.57,107.57]
[1745334491207,0.063,144.61,144.57,107.57]
[1745334491964,58.45820781,144.59,144.57,107.57]
[1745334492124,0.063,144.61,144.57,81.57]
[1745334492324,58.45820781,144.6,144.57,81.57]
[1745334492537,6.91599324,144.6,144.57,81.57]
[1745334492744,58.45820781,144.58,144.57,81.57]
[1745334493252,25.75046654,144.6,144.57,81.57]
[1745334493463,58.45820781,144.58,144.57,81.57]
[1745334494764,8.46150529,144.6,144.57,81.57]
[1745334495138,58.45820781,144.59,144.57,81.57]
[1745334495340,6.91610529,144.6,144.57,81.57]
[1745334495539,65.3743131,144.6,144.57,81.57]
[1745334495743,0.063,144.61,144.57,140.02820781]
[1745334495957,0.063,144.61,144.57,81.57]
[1745334496127,6.97839565,144.61,144.57,140.02820781]
[1745334496330,0.063,144.61,144.58,18.64964886]
[1745334496654,0.063,144.61,144.59,58.45820781]
[1745334496832,0.063,144.61,144.59,81.57]
[1745334497241,0.063,144.61,144.6,77.10785667]
[1745334497563,0.063,144.61,144.6,158.67785667]
[1745334497852,0.063,144.61,144.6,100.21964886]
[1745334498048,0.063,144.61,144.6,81.57]
[1745334499138,0.063,144.61,144.58,26.0]
[1745334499332,0.063,144.61,144.6,77.10785667]
[1745334499537,0.063,144.61,144.6,18.64964886]
[1745334499868,0.063,144.61,144.6,81.57]
[1745334500070,58.52120781,144.61,144.57,18.64964886]
[1745334500361,58.45820781,144.6,144.57,100.21964886]
[1745334500533,58.52120781,144.61,144.57,100.21964886]
[1745334500734,65.43651425,144.61,144.57,100.21964886]
[1745334501143,6.97830644,144.61,144.57,158.67785667]
[1745334501941,0.063,144.61,144.59,77.10785667]
[1745334502133,0.063,144.61,144.6,77.10785667]
[1745334502333,0.063,144.61,144.6,158.67785667]
[1745334502534,0.063,144.61,144.6,100.21964886]
[1745334502963,0.063,144.61,144.6,81.57]
[1745334503265,58.52120781,144.61,144.5,89.1091]
[1745334503437,58.45820781,144.58,144.5,89.1091]
[1745334503640,58.45820781,144.59,144.54,58.45820781]
[1745334503858,0.063,144.61,144.55,77.10785667]
[1745334504033,58.45820781,144.6,144.55,18.64964886]
[1745334504237,0.063,144.61,144.57,18.64964886]
[1745334504449,58.45820781,144.6,144.57,100.21964886]
[1745334504653,58.45820781,144.6,144.57,81.57]
[1745334504850,0.063,144.61,144.57,140.02820781]
[1745334505054,6.97842296,144.61,144.57,81.57]
[1745334505250,58.45820781,144.59,144.57,81.57]
[1745334505466,6.97842296,144.61,144.57,81.57]
[1745334505764,58.45820781,144.6,144.57,81.57]
[1745334505966,58.45820781,144.59,144.57,81.57]
[1745334506343,6.97842296,144.61,144.57,81.57]
[1745334506638,65.43663077,144.61,144.57,81.57]
[1745334507053,58.45820781,144.6,144.57,81.57]
[1745334507651,38.54243674,144.6,144.57,81.57]
[1745334508244,38.54243674,144.59,144.57,81.57]
[1745334508562,38.54243674,144.6,144.57,81.57]
[1745334508867,6.97842296,144.61,144.57,81.57]
[1745334509255,38.54243674,144.59,144.57,81.57]
[1745334509469,6.97842296,144.61,144.57,81.57]
[1745334509767,38.54243674,144.6,144.57,81.57]
[1745334509975,0.063,144.61,144.59,38.54243674]
[1745334510152,0.03,144.64,144.6,67.08863848]
[1745334510466,38.54243674,144.61,144.6,2.54620174]